fUSD/lending_fUSD_20240301
["ID","MTS","AMOUNT","RATE_DAILY","PERIOD"]
[315946191,1709298652635,-513.45428779,0.00021917,2]
[315946192,1709298652644,-500.0,0.00021917,2]
[315946193,1709298652652,-500.0,0.00021917,2]
[315946194,1709298652660,-582.06,0.00021917,2]
[315946195,1709298652670,-505.32187358,0.00021917,2]
[315946196,1709298652680,-500.0,0.00021917,2]
[315946197,1709298652690,-500.0,0.00021917,2]
[315946198,1709298652699,-500.0,0.00021917,2]
[315946199,1709298652709,-1319.22,0.00021917,2]
[315946200,1709298652719,-500.0,0.00021917,2]
[315946201,1709298652728,-568.6,0.00021917,2]
[315946202,1709298652737,-538.28069819,0.00021917,2]
[315946203,1709298652747,-500.0,0.00021917,2]
[315946204,1709298652756,-500.0,0.00021917,2]
[315946205,1709298652766,-500.0,0.00021917,2]
[315946206,1709298652775,-500.0,0.00021917,2]
[315946207,1709298652785,-500.0,0.00021917,2]
[315946208,1709298652794,-500.0,0.00021917,2]
[315946209,1709298652804,-800.22,0.00021917,2]
[315946210,1709298652813,-500.0,0.00021917,2]
[315946211,1709298652823,-631.12,0.00021917,2]
[315946212,1709298652833,-500.0,0.00021917,2]
[315946213,1709298652844,-500.0,0.00021917,2]
[315946214,1709298652855,-500.0,0.00021917,2]
[315946215,1709298652865,-500.0,0.00021917,2]
[315946216,1709298652874,-1270.93,0.00021917,2]
[315946217,1709298652884,-500.0,0.00021917,2]
[315946218,1709298652893,-500.0,0.00021917,2]
[315946219,1709298652903,-527.87977004,0.00021917,2]
[315946220,1709298652913,-500.0,0.00021917,2]
[315946221,1709298652923,-500.0,0.00021917,2]
[315946222,1709298652933,-500.0,0.00021917,2]
[315946223,1709298652944,-500.0,0.00021917,2]
[315946224,1709298652954,-522.53056819,0.00021917,2]
[315946225,1709298652963,-500.0,0.00021917,2]
[315946226,1709298652973,-513.69588002,0.00021917,2]
[315946227,1709298652982,-518.91737383,0.00021917,2]
[315946228,1709298652991,-500.0,0.00021917,2]
[315946229,1709298653001,-500.0,0.00021917,2]
[315946230,1709298653010,-500.0,0.00021917,2]
[315946231,1709298653020,-500.0,0.00021917,2]
[315946232,1709298653029,-1064.6,0.00021917,2]
[315946233,1709298653039,-760.87,0.00021917,2]
[315946234,1709298653049,-500.0,0.00021917,2]
[315946235,1709298653058,-500.0,0.00021917,2]
[315946236,1709298653068,-500.0,0.00021917,2]
[315946237,1709298653078,-500.0,0.00021917,2]
[315946238,1709298653089,-1957.99,0.00021917,2]
[315946239,1709298653099,-669.04,0.00021917,2]
[315946240,1709298653109,-500.0,0.00021917,2]
[315946241,1709298653119,-500.0,0.00021917,2]
[315946242,1709298653129,-500.0,0.00021917,2]
[315946243,1709298653139,-500.0,0.00021917,2]
[315946244,1709298653149,-500.0,0.00021917,2]
[315946245,1709298653159,-500.0,0.00021917,2]
[315946246,1709298653169,-500.0,0.00021917,2]
[315946247,1709298653179,-500.0,0.00021917,2]
[315946248,1709298653188,-510.44054005,0.00021917,2]
[315946249,1709298653197,-500.0,0.00021917,2]
[315946250,1709298653207,-671.56,0.00021917,2]
[315946251,1709298653220,-500.0,0.00021917,2]
[315946252,1709298653229,-534.26399591,0.00021917,2]
[315946253,1709298653239,-500.0,0.00021917,2]
[315946254,1709298653248,-634.54,0.00021917,2]
[315946255,1709298653258,-500.0,0.00021917,2]
[315946256,1709298653267,-988.42,0.00021917,2]
[315946257,1709298653276,-762.32,0.00021917,2]
[315946258,1709298653286,-1481.9,0.00021917,2]
[315946259,1709298653295,-723.18,0.00021917,2]
[315946260,1709298653306,-500.0,0.00021917,2]
[315946261,1709298653315,-500.0,0.00021917,2]
[315946262,1709298653324,-1062.54,0.00021917,2]
[315946263,1709298653334,-736.45,0.00021917,2]
[315946264,1709298653344,-500.0,0.00021917,2]
[315946265,1709298653353,-610.39158099,0.00021917,2]
[315946266,1709298653362,-1306.89,0.00021917,2]
[315946267,1709298653371,-626.25866157,0.00021917,2]
[315946268,1709298653381,-4610.49,0.00021917,2]
[315946269,1709298653390,-612.76,0.00021917,2]
[315946270,1709298653399,-500.0,0.00021917,2]
[315946271,1709298653408,-509.93211538,0.00021917,2]
[315946272,1709298653417,-522.17,0.00021917,2]
[315946273,1709298653427,-728.97,0.00021917,2]
[315946274,1709298653436,-500.0,0.00021917,2]
[315946275,1709298653446,-500.0,0.00021917,2]
[315946276,1709298653455,-500.0,0.00021917,2]
[315946277,1709298653464,-500.0,0.00021917,2]
[315946278,1709298653474,-500.0,0.00021917,2]
[315946279,1709298653483,-500.0,0.00021917,2]
[315946280,1709298653492,-500.0,0.00021917,2]
[315946281,1709298653500,-500.0,0.00021917,2]
[315946282,1709298653510,-500.0,0.00021917,2]
[315946283,1709298653520,-500.0,0.00021917,2]
[315946284,1709298653529,-970.67,0.00021917,2]
[315946285,1709298653538,-1013.33,0.00021917,2]
[315946286,1709298653548,-500.0,0.00021917,2]
[315946287,1709298653557,-500.0,0.00021917,2]
[315946288,1709298653567,-500.0,0.00021917,2]
[315946289,1709298653576,-500.0,0.00021917,2]
[315946290,1709298653587,-500.0,0.00021917,2]
[315946291,1709298653596,-500.0,0.00021917,2]
[315946292,1709298653605,-500.0,0.00021917,2]
[315946293,1709298653615,-500.0,0.00021917,2]
[315946294,1709298653624,-500.0,0.00021917,2]
[315946295,1709298653634,-600.84,0.00021917,2]
[315946296,1709298653643,-500.0,0.00021917,2]
[315946297,1709298653652,-500.0,0.00021917,2]
[315946298,1709298653661,-500.0,0.00021917,2]
[315946299,1709298653672,-500.0,0.00021917,2]
[315946300,1709298653681,-806.14,0.00021917,2]
[315946301,1709298653690,-500.0,0.00021917,2]
[315946302,1709298653700,-538.0,0.00021917,2]
[315946303,1709298653708,-500.0,0.00021917,2]
[315946304,1709298653717,-234.43368673,0.00021917,2]
[315946305,1709298653727,-500.0,0.00021917,2]
[315946306,1709298653736,-500.0,0.00021917,2]
[315946307,1709298653745,-699.5,0.00021917,2]
[315946308,1709298653754,-500.0,0.00021917,2]
[315946309,1709298653763,-500.0,0.00021917,2]
[315946310,1709298653773,-500.0,0.00021917,2]
[315946311,1709298653782,-500.0,0.00021917,2]
[315946312,1709298653791,-1750.39,0.00021917,2]
[315946313,1709298653800,-663.35,0.00021917,2]
[315946314,1709298653809,-500.0,0.00021917,2]
[315946315,1709298653819,-633.38,0.00021917,2]
[315946316,1709298653829,-889.1430083,0.00021917,2]
[315946317,1709298653853,-154.5369917,0.00021917,2]
[315946318,1709298653863,-1291.65668349,0.00021917,2]
[315946319,1709298653874,-1047.42331651,0.00021917,2]
[315946320,1709298653884,-500.0,0.00021917,2]
[315946321,1709298653893,-532.03887878,0.00021917,2]
[315946322,1709298653902,-500.0,0.00021917,2]
[315946323,1709298653911,-500.0,0.00021917,2]
[315946324,1709298653920,-359.20140471,0.00021917,2]
[315946325,1709298653932,-140.79859529,0.00021917,2]
[315946326,1709298653941,-757.53,0.00021917,2]
[315946327,1709298653950,-344.8479243,0.00021917,2]
[315946328,1709298654492,-155.1520757,0.00021917,2]
[315946329,1709298654504,-500.0,0.00021917,2]
[315946330,1709298654514,-467.44661494,0.00021917,2]
[315946331,1709298654534,-32.55338506,0.00021917,2]
[315946332,1709298654543,-500.0,0.00021917,2]
[315946333,1709298654553,-500.0,0.00021917,2]
[315946334,1709298654562,-500.0,0.00021917,2]
[315946335,1709298654572,-559.26,0.00021917,2]
[315946336,1709298654581,-14.95788146,0.00021917,2]
[315946337,1709298654598,-485.04211854,0.00021917,2]
[315946338,1709298654606,-500.0,0.00021917,2]
[315946339,1709298654616,-1421.8,0.00021917,2]
[315946340,1709298654625,-500.0,0.00021917,2]
[315946341,1709298654635,-20.82410858,0.00021917,2]
[315946342,1709298654647,-448.4900104,0.00021917,2]
[315946343,1709298654716,-30.68588102,0.00021917,2]
[315946344,1709298654726,-500.0,0.00021917,2]
[315946345,1709298654735,-500.0,0.00021917,2]
[315946346,1709298654744,-500.0,0.00021917,2]
[315946347,1709298654755,-500.0,0.00021917,2]
[315946348,1709298654765,-500.0,0.00021917,2]
[315946349,1709298654775,-1016.9,0.00021917,2]
[315946350,1709298654784,-1241.06,0.00021917,2]
[315946351,1709298654793,-500.0,0.00021917,2]
[315946352,1709298654802,-500.0,0.00021917,2]
[315946353,1709298654811,-500.0,0.00021917,2]
[315946354,1709298654821,-642.11,0.00021917,2]
[315946355,1709298654830,-500.0,0.00021917,2]
[315946356,1709298654840,-1762.71,0.00021917,2]
[315946357,1709298654849,-3545.78,0.00021917,2]
[315946358,1709298654859,-500.0,0.00021917,2]
[315946359,1709298654868,-503.39936783,0.00021917,2]
[315946360,1709298654877,-500.0,0.00021917,2]
[315946361,1709298654887,-500.0,0.00021917,2]
[315946362,1709298654896,-1526.25,0.00021917,2]
[315946363,1709298654906,-500.0,0.00021917,2]
[315946364,1709298654915,-500.0,0.00021917,2]
[315946365,1709298654925,-817.36,0.00021917,2]
[315946366,1709298654934,-500.0,0.00021917,2]
[315946367,1709298654943,-500.0,0.00021917,2]
[315946368,1709298654953,-500.0,0.00021917,2]
[315946369,1709298654962,-500.0,0.00021917,2]
[315946370,1709298654971,-500.0,0.00021917,2]
[315946371,1709298654980,-500.0,0.00021917,2]
[315946372,1709298654990,-500.0,0.00021917,2]
[315946373,1709298654999,-500.0,0.00021917,2]
[315946374,1709298655009,-500.0,0.00021917,2]
[315946375,1709298655018,-500.0,0.00021917,2]
[315946376,1709298655027,-2111.18,0.00021917,2]
[315946377,1709298655036,-4741.19,0.00021917,2]
[315946378,1709298655045,-500.0,0.00021917,2]
[315946379,1709298655055,-500.0,0.00021917,2]
[315946380,1709298655064,-500.0,0.00021917,2]
[315946381,1709298655074,-528.81,0.00021917,2]
[315946382,1709298655083,-500.0,0.00021917,2]
[315946383,1709298655094,-500.0,0.00021917,2]
[315946384,1709298655103,-500.0,0.00021917,2]
[315946385,1709298655113,-500.0,0.00021917,2]
[315946386,1709298655122,-500.0,0.00021917,2]
[315946387,1709298655131,-3372.80806231,0.00021917,2]
[315946388,1709298655149,-3723.70193769,0.00021917,2]
[315946389,1709298655159,-500.0,0.00021917,2]
[315946390,1709298655168,-500.0,0.00021917,2]
[315946391,1709298655179,-500.0,0.00021917,2]
[315946392,1709298655189,-500.0,0.00021917,2]
[315946393,1709298655198,-5131.7,0.00021917,2]
[315946394,1709298655209,-923.46,0.00021917,2]
[315946395,1709298655224,-5251.76,0.00021917,2]
[315946396,1709298655233,-500.0,0.00021917,2]
[315946397,1709298655244,-2917.01,0.00021917,2]
[315946398,1709298655254,-551.47,0.00021917,2]
[315946399,1709298655266,-500.0,0.00021917,2]
[315946400,1709298655276,-500.0,0.00021917,2]
[315946401,1709298655286,-500.0,0.00021917,2]
[315946402,1709298655298,-500.0,0.00021917,2]
[315946403,1709298655309,-500.0,0.00021917,2]
[315946404,1709298655320,-500.0,0.00021917,2]
[315946405,1709298655329,-500.0,0.00021917,2]
[315946406,1709298655341,-500.0,0.00021917,2]
[315946407,1709298655351,-500.0,0.00021917,2]
[315946408,1709298655361,-1107.89,0.00021917,2]
[315946409,1709298655371,-3743.21,0.00021917,2]
[315946410,1709298655387,-2559.78,0.00021917,2]
[315946411,1709298655396,-724.84,0.00021917,2]
[315946412,1709298655406,-500.0,0.00021917,2]
[315946413,1709298655416,-500.0,0.00021917,2]
[315946414,1709298655426,-500.0,0.00021917,2]
[315946415,1709298655435,-765.92,0.00021917,2]
[315946416,1709298655445,-500.0,0.00021917,2]
[315946417,1709298655455,-500.0,0.00021917,2]
[315946418,1709298655465,-719.15,0.00021917,2]
[315946419,1709298655475,-500.0,0.00021917,2]
[315946420,1709298655485,-500.0,0.00021917,2]
[315946421,1709298655496,-500.0,0.00021917,2]
[315946422,1709298655507,-500.0,0.00021917,2]
[315946423,1709298655517,-500.0,0.00021917,2]
[315946424,1709298655527,-1816.08,0.00021917,2]
[315946425,1709298655537,-500.0,0.00021917,2]
[315946426,1709298655547,-1198.62,0.00021917,2]
[315946427,1709298655557,-500.0,0.00021917,2]
[315946428,1709298655567,-500.0,0.00021917,2]
[315946429,1709298655578,-500.0,0.00021917,2]
[315946430,1709298655591,-500.0,0.00021917,2]
[315946431,1709298655601,-500.0,0.00021917,2]
[315946432,1709298655612,-500.20321061,0.00021917,2]
[315946433,1709298655622,-500.0,0.00021917,2]
[315946434,1709298655632,-500.0,0.00021917,2]
[315946435,1709298655642,-500.0,0.00021917,2]
[315946436,1709298655652,-523.93,0.00021917,2]
[315946437,1709298655662,-500.0,0.00021917,2]
[315946438,1709298655673,-500.0,0.00021917,2]
[315946439,1709298655683,-500.0,0.00021917,2]
[315946440,1709298655692,-712.79,0.00021917,2]
[315946441,1709298655702,-5180.77,0.00021917,2]
[315946442,1709298655711,-500.0,0.00021917,2]
[315946443,1709298655721,-519.91,0.00021917,2]
[315946444,1709298655732,-753.95,0.00021917,2]
[315946445,1709298655742,-500.0,0.00021917,2]
[315946446,1709298655752,-1034.61,0.00021917,2]
[315946447,1709298655761,-171.76,0.00021918,2]
[315946448,1709298655771,-220.3,0.00021918,2]
[315946449,1709298655781,-152.01,0.00021918,2]
[315946450,1709298655791,-168.87390183,0.00021933,2]
[315946451,1709298655801,-11594.0,0.00021943,2]
[315946452,1709298655811,-1041.0,0.00021943,2]
[315946453,1709298655821,-14565.31036479,0.0002199,2]
[315946454,1709298655836,-450.37168293,0.00021991,2]
[315946455,1709298655857,-750.2229379,0.00022,2]
[315946456,1709298655867,-20001.57539143,0.00022,2]
[315946457,1709298655885,-79998.42460857,0.00022,2]
[315946458,1709298655895,-1000.0,0.00022,2]
[315946459,1709298655905,-1000.0,0.00022,2]
[315946460,1709298655915,-400.0,0.00022,3]
[315946461,1709298655925,-1000.0,0.00022,2]
[315946462,1709298655934,-1000.0,0.00022,2]
[315946463,1709298655944,-1000.0,0.00022,2]
[315946464,1709298655954,-29449.66263668,0.00022,2]
[315946465,1709298655970,-70813.77736332,0.00022,2]
[315946466,1709298655980,-151.0,0.00022,7]
[315946467,1709298655989,-153.997448,0.00022,7]
[315946468,1709298655999,-151.0,0.00022,7]
[315946469,1709298656009,-151.0,0.00022,7]
[315946470,1709298656019,-156.725067,0.00022,7]
[315946471,1709298656029,-151.0,0.00022,7]
[315946472,1709298656038,-169.504875,0.00022,7]
[315946473,1709298656048,-151.0,0.00022,7]
[315946474,1709298656057,-151.0,0.00022,7]
[315946475,1709298656067,-151.0,0.00022,7]
[315946476,1709298656077,-151.0,0.00022,7]
[315946477,1709298656087,-993.64119269,0.00022013,2]
[315946478,1709298656098,-500.0,0.00022017,2]
[315946479,1709298656107,-88172.84004573,0.00022018,4]
[315946480,1709298656118,-285.525399,0.00022018,7]
[315946481,1709298656127,-151.0,0.00022018,7]
[315946482,1709298656137,-151.0,0.00022018,7]
[315946483,1709298656147,-151.0,0.00022018,7]
[315946484,1709298656156,-439.061533,0.00022018,7]
[315946485,1709298656167,-439.061533,0.00022018,7]
[315946486,1709298656176,-151.0,0.00022018,7]
[315946487,1709298656186,-151.0,0.00022018,7]
[315946488,1709298656196,-151.0,0.00022018,7]
[315946489,1709298656207,-582.050238,0.00022018,7]
[315946490,1709298656221,-151.0,0.00022018,7]
[315946491,1709298656231,-582.050238,0.00022018,7]
[315946492,1709298656241,-180.484245,0.00022018,7]
[315946493,1709298656251,-180.484245,0.00022018,7]
[315946494,1709298656261,-151.487333,0.00022018,7]
[315946495,1709298656271,-151.487333,0.00022018,7]
[315946496,1709298656281,-1541.613533,0.00022018,7]
[315946497,1709298656291,-560.226538,0.00022018,7]
[315946498,1709298656302,-151.0,0.00022018,7]
[315946499,1709298656312,-151.0,0.00022018,7]
[315946500,1709298656322,-560.226538,0.00022018,7]
[315946501,1709298656333,-229.24655366,0.00022018,7]
[315946502,1709298656366,-213.55215439,0.00021915,2]
[315946503,1709298656375,-105.76500554,0.00022018,7]
[315946504,1709298656387,-1206.6019738,0.00022018,7]
[315946505,1709298656397,-151.0,0.00022018,7]
[315946506,1709298656407,-136.83276936,0.00022018,7]
[315946507,1709298656419,-14.16723064,0.00022018,7]
[315946508,1709298656429,-151.0,0.00022018,7]
[315946509,1709298656439,-271.809942,0.00022018,7]
[315946510,1709298656449,-271.809942,0.00022018,7]
[315946511,1709298656460,-151.0,0.00022018,7]
[315946512,1709298656469,-151.0,0.00022018,7]
[315946513,1709298656479,-151.0,0.00022018,7]
[315946514,1709298656489,-367.25392666,0.00022018,7]
[315946515,1709298656506,-1424.20906934,0.00022018,7]
[315946516,1709298656516,-110.49742966,0.00022018,7]
[315946517,1709298656529,-40.50257034,0.00022018,7]
[315946518,1709298656541,-1791.462996,0.00022018,7]
[315946519,1709298656550,-151.0,0.00022018,2]
[315946520,1709298656560,-151.0,0.00022018,7]
[315946521,1709298656569,-182.20633,0.00022018,7]
[315946522,1709298656579,-151.0,0.00022018,7]
[315946523,1709298656588,-191.751152,0.00022018,7]
[315946524,1709298656599,-151.0,0.00022018,7]
[315946525,1709298656609,-151.0,0.00022018,7]
[315946526,1709298656619,-151.0,0.00022018,7]
[315946527,1709298656628,-151.0,0.00022018,7]
[315946528,1709298656638,-151.0,0.00022018,7]
[315946529,1709298656648,-151.0,0.00022018,7]
[315946530,1709298656661,-151.0,0.00022018,7]
[315946531,1709298656672,-151.0,0.00022018,7]
[315946532,1709298656682,-2485.16527166,0.00022018,2]
[315946533,1709298656695,-4519.4472432,0.00022018,2]
[315946534,1709298656834,-851.60701523,0.00021915,2]
[315946535,1709298656846,-151.0,0.00021917,2]
[315946536,1709298656856,-237995.38748514,0.00022018,2]
[315946537,1709298656866,-171.76,0.00022033,2]
[315946538,1709298656875,-220.3,0.00022033,2]
[315946539,1709298656885,-223.15,0.00022038,2]
[315946540,1709298656895,-6643.74625678,0.00022049,2]
[315946541,1709298656905,-170.7862243,0.00022049,2]
[315946542,1709298656915,-157.17895382,0.0002205,2]
[315946543,1709298656925,-167.65342711,0.00022091,2]
[315946544,1709298656935,-2041.37059748,0.00022091,2]
[315946545,1709298656945,-943.82887288,0.00022091,2]
[315946546,1709298656954,-3411.40445671,0.00022091,2]
[315946547,1709298656965,-804.60823708,0.00022091,2]
[315946548,1709298656975,-885.62,0.00022095,2]
[315946549,1709298656985,-500.0,0.00022095,2]
[315946550,1709298656995,-1605.58,0.00022095,2]
[315946551,1709298657006,-500.0,0.00022095,2]
[315946552,1709298657015,-1757.25,0.00022095,2]
[315946553,1709298657026,-1136.43,0.00022095,2]
[315946554,1709298657036,-500.0,0.00022095,2]
[315946555,1709298657045,-500.0,0.00022095,2]
[315946556,1709298657055,-1185.77,0.00022095,2]
[315946557,1709298657065,-2321.62,0.00022095,2]
[315946558,1709298657074,-541.23,0.00022095,2]
[315946559,1709298657085,-1129.97,0.00022095,2]
[315946560,1709298657096,-500.0,0.00022095,2]
[315946561,1709298657105,-500.0,0.00022095,2]
[315946562,1709298657115,-500.0,0.00022095,2]
[315946563,1709298657125,-500.0,0.00022095,2]
[315946564,1709298657135,-810.02,0.00022095,2]
[315946565,1709298657145,-500.0,0.00022095,2]
[315946566,1709298657155,-500.0,0.00022095,2]
[315946567,1709298657165,-684.89,0.00022095,2]
[315946568,1709298657175,-500.0,0.00022095,2]
[315946569,1709298657185,-555.27,0.00022095,2]
[315946570,1709298657195,-500.0,0.00022095,2]
[315946571,1709298657205,-500.0,0.00022095,2]
[315946572,1709298657215,-632.55,0.00022095,2]
[315946573,1709298657229,-500.0,0.00022095,2]
[315946574,1709298657239,-765.32,0.00022095,2]
[315946575,1709298657248,-1536.48,0.00022095,2]
[315946576,1709298657258,-6822.43,0.00022095,2]
[315946577,1709298657269,-1011.86,0.00022095,2]
[315946578,1709298657278,-500.0,0.00022096,2]
[315946579,1709298657288,-500.0,0.00022096,2]
[315946580,1709298657298,-500.0,0.00022096,2]
[315946581,1709298657307,-959.1,0.00022096,2]
[315946582,1709298657317,-500.8,0.00022096,2]
[315946583,1709298657326,-500.0,0.00022096,2]
[315946584,1709298657336,-614.3,0.00022096,2]
[315946585,1709298657347,-500.0,0.00022096,2]
[315946586,1709298657356,-500.0,0.00022096,2]
[315946587,1709298657366,-500.0,0.00022096,2]
[315946588,1709298657375,-1000.0,0.00022096,7]
[315946589,1709298657385,-500.0,0.00022096,2]
[315946590,1709298657395,-500.0,0.00022096,2]
[315946591,1709298657404,-500.0,0.00022096,2]
[315946592,1709298657414,-500.0,0.00022096,2]
[315946593,1709298657426,-500.0,0.00022096,2]
[315946594,1709298657436,-639.44,0.00022096,2]
[315946595,1709298657446,-701.19,0.00022096,2]
[315946596,1709298657456,-637.04,0.00022096,2]
[315946597,1709298657466,-900.32,0.00022096,2]
[315946598,1709298657475,-500.0,0.00022096,2]
[315946599,1709298657484,-500.0,0.00022096,2]
[315946600,1709298657494,-500.0,0.00022096,2]
[315946601,1709298657504,-655.93,0.00022096,2]
[315946602,1709298657514,-500.0,0.00022096,2]
[315946603,1709298657523,-668.42,0.00022096,2]
[315946604,1709298657533,-500.0,0.00022096,2]
[315946605,1709298657543,-566.02,0.00022096,2]
[315946606,1709298657552,-592.0,0.00022096,2]
[315946607,1709298657562,-500.0,0.00022096,2]
[315946608,1709298657571,-500.0,0.00022096,2]
[315946609,1709298657581,-500.0,0.00022096,2]
[315946610,1709298657592,-633.31,0.00022096,2]
[315946611,1709298657601,-500.0,0.00022096,2]
[315946612,1709298657611,-500.0,0.00022096,2]
[315946613,1709298657620,-500.0,0.00022096,2]
[315946614,1709298657629,-500.0,0.00022096,2]
[315946615,1709298657638,-1294.46,0.00022096,2]
[315946616,1709298657648,-1773.35,0.00022096,2]
[315946617,1709298657658,-1235.4,0.00022096,2]
[315946618,1709298657667,-543.19,0.00022096,2]
[315946619,1709298657677,-500.0,0.00022096,2]
[315946620,1709298657686,-1169.65847347,0.00022096,2]
[315946621,1709298657701,-87.66152653,0.00022096,2]
[315946622,1709298657711,-180.484245,0.00022096,7]
[315946623,1709298657721,-180.484245,0.00022096,7]
[315946624,1709298657730,-500.0,0.00022096,2]
[315946625,1709298657740,-151.487333,0.00022096,7]
[315946626,1709298657750,-151.487333,0.00022096,7]
[315946627,1709298657759,-1541.613533,0.00022096,7]
[315946628,1709298657769,-560.226538,0.00022096,7]
[315946629,1709298657779,-151.0,0.00022096,7]
[315946630,1709298657789,-560.226538,0.00022096,7]
[315946631,1709298657799,-1541.613533,0.00022096,7]
[315946632,1709298657808,-151.0,0.00022096,7]
[315946633,1709298657819,-151.0,0.00022096,7]
[315946634,1709298657829,-271.809942,0.00022096,7]
[315946635,1709298657839,-271.809942,0.00022096,7]
[315946636,1709298657851,-151.0,0.00022096,7]
[315946637,1709298658120,-167.634014,0.00022096,7]
[315946638,1709298658132,-242.579405,0.00022096,7]
[315946639,1709298658141,-1791.462996,0.00022096,7]
[315946640,1709298658151,-151.874152,0.00022096,7]
[315946641,1709298658160,-1791.462996,0.00022096,7]
[315946642,1709298658169,-151.0,0.00022096,2]
[315946643,1709298658179,-151.0,0.00022096,7]
[315946644,1709298658188,-3918.26846767,0.00022114,2]
[315946645,1709298658210,-2027.89647302,0.00022114,2]
[315946646,1709298658243,-6053.83505931,0.00022114,2]
[315946647,1709298658253,-12000.0,0.00022116,2]
[315946648,1709298658263,-151.0,0.00022116,7]
[315946649,1709298658272,-151.0,0.00022116,7]
[315946650,1709298658283,-151.0,0.00022116,7]
[315946651,1709298658293,-151.0,0.00022116,7]
[315946652,1709298658303,-439.061533,0.00022116,7]
[315946653,1709298658313,-439.061533,0.00022116,7]
[315946654,1709298658322,-151.0,0.00022116,7]
[315946655,1709298658331,-151.0,0.00022116,7]
[315946656,1709298658341,-151.0,0.00022116,7]
[315946657,1709298658351,-582.050238,0.00022116,7]
[315946658,1709298658360,-151.0,0.00022116,7]
[315946659,1709298658370,-582.050238,0.00022116,7]
[315946660,1709298658380,-1468.44566577,0.00022117,2]
[315946661,1709298658389,-12000.0,0.00022118,2]
[315946662,1709298658399,-12000.0,0.0002212,2]
[315946663,1709298658409,-706.7999268,0.00022121,7]
[315946664,1709298658419,-310.25719796,0.00022121,2]
[315946665,1709298658429,-218.25354223,0.00022122,2]
[315946666,1709298658438,-1000.0,0.00022123,2]
[315946667,1709298658448,-500.0,0.00022123,2]
[315946668,1709298658458,-576.44096595,0.00022123,2]
[315946669,1709298658468,-500.0,0.00022123,2]
[315946670,1709298658477,-329.86329529,0.00022123,2]
[315946671,1709298658487,-500.0,0.00022123,2]
[315946672,1709298658497,-500.0,0.00022123,2]
[315946673,1709298658507,-500.0,0.00022123,2]
[315946674,1709298658517,-505.36113647,0.00022123,2]
[315946675,1709298658527,-616.88705266,0.00022123,2]
[315946676,1709298658537,-464.01588878,0.00022123,2]
[315946677,1709298658546,-581.51714626,0.00022123,2]
[315946678,1709298658556,-500.0,0.00022123,2]
[315946679,1709298658566,-500.0,0.00022123,2]
[315946680,1709298658575,-500.0,0.00022123,2]
[315946681,1709298658585,-423.00532306,0.00022123,2]
[315946682,1709298658595,-500.0,0.00022123,2]
[315946683,1709298658604,-500.0,0.00022123,2]
[315946684,1709298658614,-500.0,0.00022123,2]
[315946685,1709298658624,-562.86492754,0.00022123,2]
[315946686,1709298658633,-500.0,0.00022123,2]
[315946687,1709298658643,-461.46842441,0.00022123,2]
[315946688,1709298658653,-501.73009818,0.00022123,2]
[315946689,1709298658662,-500.0,0.00022123,2]
[315946690,1709298658673,-500.0,0.00022123,2]